bitfinex/quotes_ETHUSD_20250329
["timestamp","ask_amount","ask_price","bid_price","bid_amount"]
[1743281243214,6.15606179,1819.6,1819.2,5.49669]
[1743281243389,11.65177179,1819.6,1819.2,10.99343]
[1743281243586,0.86706179,1819.6,1819.3,10.99275]
[1743281243819,0.86706179,1819.6,1819.3,5.49635]
[1743281244013,0.3771,1819.5,1819.1,15.67707]
[1743281244222,6.54713918,1819.5,1819.1,5.49708]
[1743281244738,5.7121392,1819.9,1819.4,5.49613]
[1743281245036,5.7121392,1819.9,1819.2,0.8124]
[1743281245037,5.87264,1819.7,1819.3,10.99287]
[1743281245207,5.87264,1819.7,1819.3,5.49637]
[1743281245894,5.87264,1819.7,1819.2,16.4893]
[1743281246111,0.587264,1819.6,1819.2,16.4893]
[1743281246393,0.3771,1819.5,1819.2,15.6769]
[1743281246611,0.3771,1819.5,1819.2,5.49691]
[1743281247234,0.3771,1819.5,1819.1,5.4972]
[1743281247540,0.3771,1819.5,1819.1,5.49702]
[1743281247835,1.79731961,1819.5,1819.2,5.4969]
[1743281248220,1.79731961,1819.5,1819.2,5.49669]
[1743281248420,12.58245961,1819.5,1819.1,5.4971]
[1743281248617,7.08631961,1819.5,1819.2,5.49677]
[1743281248934,0.70863196,1819.4,1819.1,10.99419]
[1743281249092,0.3771,1819.5,1819.0,0.7813]
[1743281249298,3.0,1819.6,1819.3,5.49649]
[1743281250164,0.3771,1819.7,1819.5,5.49583]
[1743281250324,34.96131,1820.1,1819.7,5.4953]
[1743281250524,5.29,1820.0,1819.7,5.4953]
[1743281250771,5.49494,1819.9,1819.5,15.67593]
[1743281250924,0.3771,1819.8,1819.5,15.67593]
[1743281251124,5.87236,1819.8,1819.5,10.17999]
[1743281251324,8.11838212,1819.8,1819.5,10.17999]
[1743281251560,6.30738821,1819.7,1819.5,10.17999]
[1743281251734,0.3771,1819.8,1819.5,5.4958]
[1743281252569,5.29,1819.8,1819.5,11.75793]
[1743281252866,5.29,1819.8,1819.5,6.26203]
[1743281253065,5.29,1819.8,1819.5,6.2623]
[1743281253830,5.29,1819.8,1819.5,6.24716413]
[1743281254472,5.29,1819.8,1819.5,5.496]
[1743281254837,10.78512,1819.8,1819.5,5.496]
[1743281255037,0.3922,1820.5,1819.9,5.4948]
[1743281255337,5.88611,1820.2,1819.7,15.6754]
[1743281256171,5.88611,1820.2,1819.8,5.4951]
[1743281256330,5.88611,1820.2,1819.7,15.6754]
[1743281256535,0.588611,1820.1,1819.7,15.6754]
[1743281257172,6.082851,1820.1,1819.7,10.17999]
[1743281257392,0.3922,1820.0,1819.7,10.17999]
[1743281257672,0.3922,1820.0,1819.7,15.67527]
[1743281258774,0.3922,1820.0,1819.8,5.49482]
[1743281259775,0.3922,1820.0,1819.7,5.4954]
[1743281260474,0.3922,1820.0,1819.7,10.99057]
[1743281260950,0.3922,1820.0,1819.7,5.49517]
[1743281261843,0.3922,1820.0,1819.8,5.49497]
[1743281262046,0.3922,1820.0,1819.9,5.4948]
[1743281262276,0.3922,1820.0,1819.8,5.49497]
[1743281263470,2.66183464,1820.4,1820.1,5.49408]
[1743281263471,5.289,1820.4,1820.1,5.49408]
[1743281263792,5.289,1820.4,1820.0,5.49421]
[1743281263793,0.3922,1820.3,1820.0,5.49421]
[1743281265496,5.88592,1820.3,1819.9,10.97359]
[1743281265703,5.49394,1820.2,1819.9,10.17999]
[1743281266002,1.36258821,1820.2,1819.9,15.67478]
[1743281266386,1.36258821,1820.2,1819.9,10.17999]
[1743281267054,1.36258821,1820.2,1819.8,5.49488]
[1743281267699,3.0,1820.2,1819.9,5.49468]
[1743281268292,3.0,1820.2,1819.9,10.98931]
[1743281268497,3.0,1820.2,1819.9,5.49463]
[1743281269170,3.0,1820.2,1819.9,5.4946]
[1743281269973,3.0,1820.2,1819.8,5.49502]
[1743281270173,4.966866,1820.2,1819.8,5.49502]
[1743281271411,10.460766,1820.2,1819.8,5.49502]
[1743281275407,0.3922,1821.0,1820.1,0.7639]
[1743281275580,0.79885064,1821.0,1820.3,6.2574]
[1743281275775,3.3922,1821.0,1820.5,5.49283]
[1743281276097,0.33922,1820.9,1820.5,5.49283]
[1743281276683,3.33922,1820.9,1820.5,5.49283]
[1743281276879,3.33922,1820.9,1820.6,5.4926]
[1743281277475,3.33922,1820.9,1820.5,10.98569]
[1743281278115,3.33922,1820.9,1820.6,5.49263]
[1743281278116,3.0,1820.9,1820.6,5.49263]
[1743281279782,3.0,1820.9,1820.6,6.25653]
[1743281280195,11.1727,1821.0,1820.6,11.74916]
[1743281280394,5.6812,1821.0,1820.7,5.49235]
[1743281280798,0.3922,1821.2,1820.8,5.49192]
[1743281281012,6.49309521,1821.2,1820.8,5.49189]
[1743281281380,5.6802,1821.2,1820.9,5.49175]
[1743281281612,0.3922,1821.2,1820.9,5.49175]
[1743281281813,0.3922,1821.2,1820.8,5.49208]
[1743281282015,0.3922,1821.2,1820.8,10.98394]
[1743281282313,5.88314,1821.2,1820.8,5.49186]
[1743281282481,5.88314,1821.2,1820.7,10.17999]
[1743281282482,5.49151,1821.0,1820.7,10.17999]
[1743281282684,8.32579612,1821.1,1820.7,10.17999]
[1743281282881,13.81716612,1821.1,1820.7,15.67232]
[1743281283087,0.3922,1820.9,1820.7,10.17999]
[1743281284013,0.3922,1820.9,1820.7,15.67237]
[1743281284508,13.81698612,1821.1,1820.6,5.49242]
[1743281284509,13.62098212,1821.1,1820.6,5.49242]
[1743281284816,9.49161033,1821.1,1820.7,5.49239]
[1743281285815,1.75429821,1821.1,1820.7,0.8291]
[1743281286018,3.3922,1821.1,1820.8,5.49209]
[1743281286888,3.3922,1821.1,1820.8,10.98398]
[1743281287091,3.3922,1821.1,1820.8,5.49189]
[1743281287748,3.3922,1821.1,1820.8,10.98377]
[1743281288034,3.0,1821.1,1820.9,5.49159]
[1743281288235,0.3922,1821.4,1820.9,0.0549171]
[1743281288403,5.287,1821.3,1821.0,6.32033]
[1743281288603,5.287,1821.3,1821.1,5.49102]
[1743281288799,0.3922,1821.4,1821.2,5.49079]
[1743281289107,29.4802,1821.6,1821.3,5.49043]
[1743281289443,29.088,1821.6,1821.4,5.4901]
[1743281289610,3.0,1821.7,1821.5,5.48972]
[1743281290809,3.0,1821.7,1821.6,5.48967]
[1743281291000,3.0,1821.7,1821.5,5.48972]
[1743281291202,3.0,1821.9,1821.6,5.48967]
[1743281292824,5.49003,1821.5,1821.3,10.17999]
[1743281293139,5.49028,1821.4,1821.0,15.67136]
[1743281293337,5.49076,1821.3,1821.0,10.17999]
[1743281293506,10.98159,1821.3,1821.0,10.17999]
[1743281293910,5.49076,1821.3,1821.0,10.17999]
[1743281294105,5.4909,1821.2,1821.0,10.17999]
[1743281294334,5.49076,1821.3,1820.8,16.853127]
[1743281294534,5.4909,1821.2,1820.8,16.853127]
[1743281294742,5.49076,1821.3,1820.8,16.853127]
[1743281294939,6.039836,1821.3,1820.8,16.853127]
[1743281295247,5.49103,1821.2,1820.8,16.853127]
[1743281295742,5.49103,1821.2,1820.8,15.67184]
[1743281295916,3.0,1821.2,1820.9,5.49176]
[1743281296710,3.0,1821.2,1820.8,15.67184]
[1743281297447,8.49104,1821.2,1820.8,10.17999]
[1743281297622,5.49168,1821.0,1820.8,10.17999]
[1743281299142,5.49168,1821.0,1820.7,11.00909]
[1743281299723,5.49168,1821.0,1820.7,0.8291]
[1743281300326,2.24602212,1821.3,1820.7,0.8291]
[1743281300646,5.285,1821.5,1821.1,5.49101]
[1743281300952,5.285,1821.5,1821.2,5.49075]
[1743281301243,3.0,1821.5,1821.2,5.49075]
[1743281301444,3.0,1821.5,1821.3,5.49055]
[1743281301634,3.0,1821.5,1821.2,5.49075]
[1743281302032,3.0,1821.5,1821.1,6.117011]
[1743281302220,3.0,1821.5,1821.1,11.66292693]
[1743281302433,3.0,1821.5,1821.2,5.49077]
[1743281302951,3.0,1821.5,1821.1,6.117001]
[1743281302952,8.49006,1821.5,1821.1,6.117001]
[1743281303130,5.49028,1821.4,1821.0,11.75012]
[1743281303331,5.49028,1821.4,1821.0,6.25865]
[1743281304353,5.49028,1821.4,1821.0,11.7499]
[1743281304939,8.49006,1821.5,1821.1,5.49117]
[1743281305756,3.3922,1821.8,1821.4,0.7673]
[1743281306070,14.16645,1821.8,1821.4,6.25742]
[1743281306246,20.76847221,1821.8,1821.4,6.25742]
[1743281306447,10.97907,1821.7,1821.3,15.67056]
[1743281306627,3.0,1821.5,1821.3,10.17999]
[1743281306828,5.48946,1821.7,1821.3,15.67043]
[1743281307032,5.48946,1821.7,1821.3,17.863268]
[1743281307234,10.97907,1821.7,1821.3,17.863268]
[1743281307542,10.97907,1821.7,1821.3,15.67043]
[1743281309557,5.48969,1821.6,1821.3,10.17999]
[1743281309760,5.49028,1821.4,1821.3,10.17999]
[1743281309965,5.49028,1821.4,1821.1,10.17999]
[1743281310135,5.49058,1821.3,1821.1,10.17999]
[1743281311357,5.49028,1821.4,1821.1,10.17999]
[1743281311535,5.49071,1821.3,1821.1,10.17999]
[1743281311740,10.98153,1821.3,1821.1,10.17999]
[1743281312257,8.49088,1821.2,1821.1,10.17999]
[1743281312560,14.16808,1821.2,1821.1,10.17999]
[1743281313861,19.6592,1821.2,1820.8,10.94729]
[1743281314063,14.16808,1821.2,1820.8,16.43937]
[1743281314234,5.4912,1821.1,1820.8,10.94729]
[1743281314435,16.35855021,1821.2,1820.8,16.43935]
[1743281315063,21.84967021,1821.2,1820.8,16.43935]
[1743281315266,16.35855021,1821.2,1820.8,16.43935]
[1743281315459,16.35855021,1821.2,1820.8,10.94729]
[1743281315846,5.49118,1821.1,1820.8,10.94729]
[1743281316043,5.49165,1821.0,1820.8,10.17999]
[1743281316247,10.98391,1820.9,1820.5,10.98269]
[1743281316662,5.285,1820.8,1820.3,0.8027]
[1743281316947,3.0,1820.6,1820.2,10.17999]
[1743281317148,3.0,1820.6,1820.2,15.67364]
[1743281317333,3.0,1820.6,1820.3,5.49341]
[1743281317534,3.0,1820.6,1820.2,10.17999]
[1743281317733,3.0,1820.6,1820.2,15.72876302]
[1743281317971,8.49272,1820.6,1820.2,17.3269763]
[1743281319464,13.98566,1820.6,1820.2,11.8331363]
[1743281319640,14.37786,1820.6,1820.2,10.17999]
[1743281319841,8.88492,1820.6,1820.2,10.17999]
[1743281320238,8.88492,1820.6,1820.2,15.67388]
[1743281320763,8.88492,1820.6,1820.2,10.17999]
[1743281320986,5.49353,1820.4,1820.2,10.17999]
[1743281321139,5.49353,1820.4,1820.0,10.17999]
[1743281321637,10.9871,1820.4,1820.0,10.17999]
[1743281322043,5.49353,1820.4,1820.0,10.17999]
[1743281322341,5.49353,1820.4,1820.0,15.67448]
[1743281323281,5.49361,1820.3,1820.0,10.17999]
[1743281323441,5.49353,1820.4,1820.0,10.17999]
[1743281323770,5.49353,1820.4,1820.0,15.67448]
[1743281324341,5.49353,1820.4,1820.0,16.32431566]
[1743281325482,8.62751412,1820.5,1820.0,16.32431566]
[1743281325665,8.6782,1820.6,1820.1,5.54912665]
[1743281325865,8.6782,1820.6,1820.0,16.32415566]
[1743281325866,5.49312,1820.5,1820.0,16.32415566]
[1743281326473,5.49312,1820.5,1820.1,5.49408]
[1743281326789,5.49331,1820.4,1820.0,10.17999]
[1743281326974,5.49331,1820.4,1820.0,15.6743]
[1743281328073,7.459411,1820.5,1820.0,15.67427]
[1743281328257,3.0,1820.4,1820.1,5.49413]
[1743281328594,3.0,1820.4,1820.0,15.67427]
[1743281328984,3.0,1820.4,1820.0,21.16854]
[1743281330489,8.49332,1820.4,1820.0,15.67426]
[1743281330788,9.83010142,1820.4,1820.0,15.67426]
[1743281332992,15.32363142,1820.4,1820.0,15.67426]
[1743281333891,9.83010142,1820.4,1820.0,15.67426]
[1743281334291,15.32362142,1820.4,1820.0,15.67426]
[1743281334587,7.74045212,1820.1,1819.8,10.17999]
[1743281334790,5.88686,1820.0,1819.6,15.67569]
[1743281334963,11.38161,1820.0,1819.6,15.67569]
[1743281335163,5.49486,1819.9,1819.6,10.17999]
[1743281335363,10.98994,1819.9,1819.6,10.17999]
[1743281335593,5.49526,1819.8,1819.5,10.17999]
[1743281335762,5.49526,1819.8,1819.3,21.93988]
[1743281335960,5.49526,1819.8,1819.3,11.75989]
[1743281336659,5.49526,1819.8,1819.3,6.2633]
[1743281336900,10.99063,1819.8,1819.3,11.75971]
[1743281337068,10.99063,1819.8,1819.3,12.91949211]
[1743281337689,5.49523,1819.8,1819.3,12.91949211]
[1743281337897,5.49541,1819.7,1819.3,7.42302211]
[1743281338099,5.49541,1819.7,1819.3,7.47798157]
[1743281338277,5.49541,1819.7,1819.3,12.97444157]
[1743281338477,5.49541,1819.7,1819.3,12.91948211]
[1743281338796,5.49523,1819.8,1819.3,12.91948211]
[1743281338997,7.74189212,1819.6,1819.3,0.7669]
[1743281339196,3.3922,1819.7,1819.1,10.94689]
[1743281339399,8.88774,1819.7,1819.2,5.55188358]
[1743281339702,5.49592,1819.6,1819.2,0.05496358]
[1743281339867,5.49619,1819.5,1819.1,16.44411]
[1743281340466,10.99246,1819.5,1819.1,0.7669]
[1743281340676,10.99246,1819.5,1819.0,15.69744]
[1743281340677,5.88881,1819.4,1819.0,10.19999]
[1743281340872,11.38538,1819.4,1819.0,10.19999]
[1743281341076,5.88877,1819.4,1819.0,10.19999]
[1743281341272,5.49686,1819.3,1819.0,10.19999]
[1743281342002,5.49686,1819.3,1819.0,0.02]
[1743281342183,11.38503,1819.4,1819.0,0.02]
[1743281342368,12.10698499,1819.4,1819.0,0.02]
[1743281342780,5.49663,1819.3,1819.0,0.02]
[1743281344408,19.64110711,1819.4,1819.0,0.02]
[1743281344899,17.39508499,1819.4,1819.0,0.02]
[1743281345317,5.49669,1819.3,1819.0,0.02]
[1743281346481,11.89854499,1819.4,1819.0,5.51751]
[1743281349785,6.21834499,1819.4,1819.0,5.51751]
[1743281349988,0.3922,1819.6,1819.1,0.87507268]
[1743281350193,10.99007,1819.9,1819.5,0.8201]
[1743281350395,5.8867,1820.0,1819.5,16.49599]
[1743281350717,3.0,1819.9,1819.6,5.49555]
[1743281351835,3.0,1819.9,1819.6,15.67554]
[1743281352187,3.0,1819.9,1819.7,5.49536]
[1743281352827,10.78325,1820.1,1819.7,5.49536]
[1743281352994,10.78325,1820.1,1819.8,0.8201]
[1743281353495,16.27769,1820.1,1819.8,0.8201]
[1743281355220,10.78325,1820.1,1819.8,0.8201]
[1743281355389,10.78338,1820.1,1819.8,0.8201]
[1743281355988,3.0,1820.0,1819.8,0.8201]
[1743281357421,5.49438,1820.1,1819.8,0.8201]
[1743281357923,3.0,1820.1,1819.7,10.17999]
[1743281358110,5.49494,1819.9,1819.7,10.17999]
[1743281360125,8.04079212,1820.0,1819.7,10.17999]
[1743281360329,3.0,1820.3,1819.9,0.7853]
[1743281360627,5.49394,1820.2,1819.9,0.7853]
[1743281361426,5.49439,1820.1,1819.8,10.17999]
[1743281361597,5.49394,1820.2,1819.8,15.67504]
[1743281361801,3.0,1820.3,1819.9,5.4947]
[1743281361802,8.49367,1820.3,1819.9,5.4947]
[1743281362034,13.78167,1820.3,1820.0,0.7853]
[1743281362548,13.78167,1820.3,1819.8,17.870433]
[1743281362549,5.49403,1820.2,1819.8,16.46016]
[1743281363610,5.49403,1820.2,1819.9,10.17999]
[1743281363809,13.78167,1820.3,1819.9,15.67477]
[1743281364030,19.27552,1820.3,1819.9,15.67477]
[1743281364235,13.78167,1820.3,1819.9,15.67476]
[1743281366337,19.27549,1820.3,1819.9,15.67476]
[1743281368043,5.4942,1820.1,1819.9,10.17999]
[1743281368622,5.8864,1820.1,1819.9,10.17999]
[1743281369210,5.4939,1820.2,1819.9,10.17999]
[1743281369433,5.4939,1820.2,1819.9,10.96529]
[1743281369636,5.4939,1820.2,1819.9,0.7853]
[1743281370051,10.98803,1820.2,1819.9,0.7853]
[1743281370222,12.80886299,1820.2,1819.9,0.7853]
[1743281370418,5.49464,1820.0,1819.7,0.7853]
[1743281370854,10.98938,1820.0,1819.7,0.7853]
[1743281371838,5.4948,1819.9,1819.7,0.7853]
[1743281372548,5.4948,1819.9,1819.6,10.96529]
[1743281374024,5.4948,1819.9,1819.6,10.17999]
[1743281374025,5.49541,1819.7,1819.6,10.17999]
[1743281374827,5.49574,1819.6,1819.3,0.7629]
[1743281375052,5.49541,1819.7,1819.3,0.7629]
[1743281375252,5.49578,1819.6,1819.3,0.7629]
[1743281376448,5.49618,1819.5,1819.2,10.17999]
[1743281376654,5.49673,1819.3,1819.1,10.94289]
[1743281376979,5.49673,1819.3,1819.0,10.19999]
[1743281377685,5.49673,1819.3,1818.6,34.58648]
[1743281377686,0.3922,1818.9,1818.3,0.42194499]
[1743281377859,10.74536212,1818.4,1818.3,0.42194499]
[1743281378179,17.80461629,1818.4,1818.3,0.42194499]
[1743281378351,5.50034,1818.1,1817.8,0.7629]
[1743281378554,5.50034,1818.1,1817.7,10.18499]
[1743281378555,7.74657212,1818.0,1817.7,10.18499]
[1743281378778,2.24602212,1818.0,1817.7,10.18499]
[1743281378974,7.74717212,1817.8,1817.7,0.005]
[1743281380175,10.74717212,1817.8,1817.7,0.005]
[1743281380680,5.50264,1817.4,1816.9,5.50371]
[1743281380980,8.287,1817.3,1816.9,5.55873535]
[1743281381284,2.24602212,1817.2,1816.8,0.7629]
[1743281381449,7.74913212,1817.2,1816.8,0.7629]
[1743281381651,13.25225212,1817.2,1816.7,5.50448]
[1743281381862,14.57582833,1817.2,1816.7,5.50448]
[1743281382148,14.57582833,1817.2,1816.6,16.4476]
[1743281382149,14.57585833,1817.2,1816.6,21.95224]
[1743281382352,14.57585833,1817.2,1816.6,21.95217]
[1743281382684,9.07267833,1817.2,1816.7,5.50431]
[1743281382979,5.50256,1817.4,1817.0,6.26631]
[1743281382980,3.0,1817.4,1817.0,6.26631]
[1743281383582,3.0,1817.4,1817.1,5.50327]
[1743281384295,3.0,1817.4,1817.0,6.26631]
[1743281384500,3.0,1817.4,1817.0,11.76969]
[1743281384800,4.37971,1817.4,1817.0,6.26628]
[1743281385094,4.37971,1817.4,1817.0,11.76972]
[1743281385396,4.37971,1817.4,1817.0,6.26628]
[1743281385605,9.88208,1817.4,1817.0,6.26628]
[1743281385889,0.3922,1817.6,1817.0,0.7629]
[1743281386052,5.304,1817.7,1817.2,5.50297]
[1743281386254,10.80546,1817.7,1817.2,11.00569]
[1743281386454,10.80546,1817.7,1817.2,5.50272]
[1743281386757,10.80546,1817.7,1817.2,11.00554]
[1743281386960,1.930668,1817.7,1817.3,5.50245]
[1743281387161,11.66190878,1818.0,1817.5,5.50202]
[1743281387354,3.0,1817.9,1817.5,5.50191]
[1743281387567,17.16267878,1818.0,1817.5,5.50191]
[1743281387871,3.0,1817.8,1817.5,5.50191]
[1743281389096,11.00346,1817.7,1817.4,10.17999]
[1743281389293,5.50172,1817.7,1817.4,10.17999]
[1743281389495,11.00333,1817.7,1817.4,10.17999]
[1743281390091,5.50161,1817.7,1817.4,10.17999]
[1743281390293,11.00323,1817.7,1817.4,10.17999]
[1743281390500,7.0261622,1817.7,1817.4,10.17999]
[1743281391399,0.3922,1818.6,1817.6,5.50176]
[1743281391578,0.3922,1818.6,1818.1,5.50004]
[1743281391913,5.49926,1818.5,1817.9,15.68062]
[1743281392075,5.49934,1818.4,1817.9,15.68062]
[1743281392276,5.49926,1818.5,1818.0,5.50053]
[1743281393471,5.49926,1818.5,1818.0,11.00091]
[1743281393677,5.49926,1818.5,1818.1,5.50023]
[1743281393883,5.342,1818.6,1818.3,5.49951]
[1743281394099,0.3922,1818.9,1818.5,5.49882]
[1743281394299,5.343,1818.8,1818.5,5.49882]
[1743281394480,3.3922,1818.9,1818.5,5.49882]
[1743281394683,1.815676,1818.9,1818.5,5.49882]
[1743281395010,5.88942,1819.1,1818.7,5.49835]
[1743281395173,5.49776,1819.0,1818.5,5.49902]
[1743281395368,5.49776,1819.0,1818.4,21.17828]
[1743281395369,5.49798,1818.9,1818.4,21.17828]
[1743281395684,3.0,1818.8,1818.4,15.67909]
[1743281396221,3.0,1818.8,1818.4,15.67907]
[1743281396877,3.0,1818.8,1818.4,21.17816]
[1743281397090,8.49775,1819.0,1818.5,5.49889]
[1743281397291,9.621146,1819.0,1818.5,5.49882]
[1743281397475,5.49783,1818.9,1818.5,5.49882]
[1743281398505,15.118846,1819.0,1818.5,5.49882]
[1743281398814,9.621096,1819.0,1818.5,15.67881]
[1743281399109,9.621096,1819.0,1818.6,5.49856]
[1743281399317,4.123396,1819.0,1818.6,5.49856]
[1743281399692,11.23342,1819.1,1818.6,5.49853]
[1743281399881,13.99537,1819.0,1818.5,15.67899]
[1743281400315,8.49757,1819.0,1818.5,15.67899]
[1743281400524,8.49757,1819.0,1818.5,21.1778]
[1743281400845,3.0,1819.0,1818.5,10.17999]
[1743281401040,5.89066,1818.7,1818.5,10.17999]
[1743281401322,5.7232,1818.7,1818.5,10.17999]
[1743281401997,0.6922,1818.9,1818.5,10.17999]
[1743281402198,0.3922,1819.5,1819.1,5.49708]
[1743281402416,5.49712,1819.2,1818.8,10.17999]
[1743281402617,5.49712,1819.2,1818.8,15.67811]
[1743281403797,5.49712,1819.2,1818.9,5.4978]
[1743281403798,3.0,1819.2,1818.9,5.4978]
[1743281404097,3.0,1819.2,1819.0,5.49732]
[1743281404327,3.0,1819.4,1819.1,5.49722]
[1743281404714,8.49633,1819.4,1819.0,5.49746]
[1743281404916,3.0,1819.4,1819.0,10.99474]
[1743281405125,3.0,1819.4,1819.1,5.49716]
[1743281405333,1.425333,1819.4,1819.2,5.49676]
[1743281405536,5.49571,1819.6,1819.3,5.4964]
[1743281405537,5.363,1819.6,1819.3,5.4964]
[1743281406022,3.0,1819.5,1819.2,10.99346]
[1743281406234,3.0,1819.5,1819.2,5.4967]
[1743281406835,9.33243,1819.5,1819.1,10.17999]
[1743281407503,14.82874,1819.5,1819.1,10.17999]
[1743281407708,5.49632,1819.4,1819.1,10.17999]
[1743281407907,9.33243,1819.5,1819.1,15.67712]
[1743281408310,5.49673,1819.3,1819.0,10.17999]
[1743281408525,5.49645,1819.4,1819.0,10.17999]
[1743281408754,3.0,1819.3,1819.0,15.67751]
[1743281409241,8.49662,1819.3,1818.9,6.27173]
[1743281409410,3.0,1819.3,1818.9,0.7741]
[1743281409604,3.8363,1819.5,1819.1,5.49697]
[1743281409804,0.3922,1819.7,1819.0,10.17999]
[1743281410014,5.49573,1819.6,1819.2,5.49665]
[1743281410215,3.0,1819.6,1819.2,5.55161336]
[1743281410425,0.3922,1819.7,1819.3,5.49661]
[1743281410638,0.3922,1819.7,1819.4,5.49628]
[1743281410842,0.3922,1819.7,1819.3,5.4965]
[1743281411022,8.88779,1819.7,1819.3,5.4965]
[1743281411419,8.49591,1819.6,1819.2,6.271]
[1743281411818,5.49605,1819.5,1819.0,15.67751]
[1743281412024,5.49648,1819.4,1819.0,15.67751]
[1743281413061,5.49734,1819.1,1818.7,6.27236]
[1743281413361,5.49734,1819.1,1818.7,16.45235]
[1743281414156,3.3922,1819.3,1819.0,5.49744]
[1743281414330,3.0,1819.3,1819.0,5.49744]
[1743281414533,3.0,1819.3,1819.0,5.49724]
[1743281415056,8.49663,1819.3,1818.9,5.49782]
[1743281415262,8.49663,1819.3,1818.8,5.49797]
[1743281415446,9.883093,1819.3,1818.9,5.49771]
[1743281415827,8.49663,1819.3,1818.9,5.49771]
[1743281416232,8.49663,1819.3,1819.0,5.49747]
[1743281416233,3.0,1819.3,1819.0,5.49747]
[1743281416649,8.49662,1819.3,1818.9,5.4976]
[1743281417251,3.0,1819.3,1818.9,10.99517]
[1743281417435,3.0,1819.3,1819.0,5.49749]
[1743281418685,3.0,1819.3,1818.9,5.49757]
[1743281418983,8.49676,1819.3,1818.9,5.49757]
[1743281419185,10.432868,1819.3,1818.9,5.49757]
[1743281420035,10.432868,1819.3,1818.9,10.9951]
[1743281420235,3.0,1819.3,1819.0,5.49746]
[1743281422489,3.0,1819.3,1819.0,5.49737]
[1743281423048,0.3922,1819.5,1819.0,5.49752]
[1743281423349,3.0,1819.6,1819.0,10.98219]
[1743281423578,3.0,1819.6,1819.3,5.49656]
[1743281423770,3.87372,1819.6,1819.3,5.49656]
[1743281424081,5.7372,1819.7,1819.4,5.49614]
[1743281424366,5.7372,1819.7,1819.3,5.49656]
[1743281424570,11.23264,1819.7,1819.3,5.49656]
[1743281424865,5.7372,1819.7,1819.2,10.17999]
[1743281425072,5.49644,1819.4,1819.2,10.17999]
[1743281425270,3.941844,1819.3,1819.2,10.17999]
[1743281425465,3.0,1819.3,1819.2,10.17999]
[1743281425666,3.0,1819.3,1819.2,15.67691]
[1743281425858,3.0,1819.3,1819.2,10.17999]
[1743281427780,8.49661,1819.3,1819.2,10.17999]
[1743281428276,8.49661,1819.3,1818.9,15.67778]
[1743281428575,9.737294,1819.3,1819.0,10.99488]
[1743281428780,8.338,1819.3,1819.1,5.49707]
[1743281429076,8.338,1819.3,1819.0,5.49739]
[1743281429476,5.49706,1819.2,1818.9,10.17999]
[1743281430788,5.88926,1819.2,1818.8,6.30032]
[1743281431170,5.88926,1819.2,1818.8,11.79831]
[1743281431366,5.88926,1819.2,1818.8,6.30019]
[1743281431582,0.251082,1819.1,1818.8,6.30019]
[1743281431779,0.251082,1819.1,1818.9,5.49754]
[1743281432092,0.22978899,1819.0,1818.9,5.49754]
[1743281432279,8.88913,1819.2,1818.9,5.49754]
[1743281432481,0.22978899,1819.1,1818.9,5.49754]
[1743281432683,8.88913,1819.2,1818.8,6.30027]
[1743281432989,0.22978899,1819.1,1818.8,6.30027]
[1743281433390,14.38629,1819.2,1818.8,6.30027]
[1743281433591,0.22978899,1819.0,1818.8,6.30027]
[1743281433800,10.861559,1819.2,1818.8,6.30027]
[1743281433993,0.22978899,1818.9,1818.8,16.48026]
[1743281434191,10.861559,1819.2,1818.8,16.48026]
[1743281434397,0.22978899,1818.9,1818.8,16.48026]
[1743281434574,10.861559,1819.2,1818.8,16.48026]
[1743281434764,0.22978899,1818.9,1818.8,16.48026]
[1743281434964,10.861559,1819.2,1818.8,16.48026]
[1743281435168,0.22978899,1818.9,1818.8,16.48026]
[1743281435368,3.0,1819.2,1818.9,5.49778]
[1743281435673,3.0,1819.2,1818.9,10.99543]
[1743281435878,3.0,1819.2,1819.1,5.49722]
[1743281436080,5.49698,1819.2,1818.9,5.49782]
[1743281436400,5.49763,1819.0,1818.6,16.46481]
[1743281437097,10.99538,1819.0,1818.6,16.46481]
[1743281437499,5.49763,1819.0,1818.6,16.46481]
[1743281437796,3.0,1819.0,1818.7,5.49838]
[1743281438891,3.0,1819.0,1818.8,5.49812]
[1743281439069,3.0,1819.0,1818.7,5.49838]
[1743281439270,3.0,1819.0,1818.7,5.49831]
[1743281440202,5.7172,1819.1,1818.8,5.49801]
[1743281442403,3.0,1819.0,1818.4,0.7861]
[1743281442577,3.0,1819.0,1818.2,10.96609]
[1743281442578,5.49922,1818.5,1818.2,10.96609]
[1743281442770,5.49967,1818.3,1818.1,10.17999]
[1743281443187,10.99955,1818.3,1818.1,10.17999]
[1743281443571,5.49967,1818.3,1818.1,10.17999]
[1743281444202,5.49964,1818.3,1818.1,10.17999]
[1743281445506,3.0,1818.4,1818.1,10.17999]
[1743281445670,3.0,1818.4,1818.1,16.697979]
[1743281446071,5.324,1818.5,1818.2,0.7861]
[1743281446286,3.0,1818.4,1818.2,0.7861]
[1743281447395,3.0,1818.4,1818.2,6.28596]
[1743281447704,0.22002243,1818.3,1818.2,6.28587]
[1743281447871,8.49874,1818.6,1818.2,8.0342559]
[1743281448080,0.22002243,1818.5,1818.2,8.0342559]
[1743281448278,0.22002243,1818.5,1818.3,5.49949]
[1743281448477,0.22002243,1818.5,1818.4,5.49934]
[1743281448773,5.322,1818.7,1818.4,16.779213]